[Event "FIDE Open World Rapid 2024"]
[Site "New York"]
[Date "2024.12.27"]
[Round "6.20"]
[White "Grigoryan, Karen H."]
[Black "Mamedov, Edgar"]
[Result "1-0"]
[ECO "B30"]
[WhiteElo "2618"]
[BlackElo "2441"]
[Annotator "ChessBase"]
[PlyCount "77"]
[EventDate "2024.12.14"]
[EventType "swiss"]
[EventCountry "USA"]
[SourceTitle "playchess.com"]
[Source "ChessBase"]
[SourceQuality "1"]
[TimeControl "900+10"]

1. e4 {[%emt 0:00:03]} c5 {[%emt 0:00:09]} 2. Nf3 {[%emt 0:00:04]} Nc6 {[%emt 0:00:02]} 3. Bb5 {[%emt 0:00:06]} e6 {[%emt 0:00:02]} 4. O-O {[%emt 0:00:19]} Nge7 {[%emt 0:00:04]} 5. c3 {[%emt 0:00:07]} a6 {[%emt 0:00:13]} 6. Ba4 {[%emt 0:00:02]} b5 {[%emt 0:00:03]} 7. Bc2 {[%emt 0:00:02]} Bb7 {[%emt 0:00:02]} 8. Re1 {[%emt 0:00:09]} Rc8 {[%emt 0:00:14]} 9. a4 {[%emt 0:00:15]} Ng6 {[%emt 0:00:32]} 10. axb5 {[%emt 0:00:04]} axb5 {[%emt 0:00:03]} 11. Na3 {[%emt 0:00:09]} Ra8 {[%emt 0:00:47]} 12. Rb1 {[%emt 0:00:27]} Ba6 {[%emt 0:02:30]} 13. Ra1 {[%emt 0:03:58]} Bb7 {[%emt 0:00:45]} 14. Bb1 {[%emt 0:00:37]} Be7 {[%emt 0:01:38]} 15. d4 {[%emt 0:00:19]} cxd4 {[%emt 0:00:49]} 16. cxd4 {[%emt 0:00:13]} O-O {[%emt 0:00:22]} 17. Nc2 {[%emt 0:00:18]} Rxa1 {[%emt 0:01:40]} 18. Nxa1 {[%emt 0:00:03]} Nb4 {[%emt 0:00:59]} 19. Nb3 {[%emt 0:00:12]} f5 {[%emt 0:01:14]} 20. exf5 {[%emt 0:00:12]} exf5 {[%emt 0:00:11]} 21. d5 {[%emt 0:04:09]} Bxd5 {[%emt 0:01:30]} 22. Nbd4 {[%emt 0:00:03]} f4 {[%emt 0:02:25]} 23. Nxb5 {[%emt 0:00:37]} Bc5 {[%emt 0:00:37]} 24. Nc3 {[%emt 0:00:12]} Ba8 {[%emt 0:01:27]} 25. Ne4 {[%emt 0:00:20]} Be7 {[%emt 0:00:01]} 26. Bd2 {[%emt 0:00:17]} Nc6 {[%emt 0:00:17]} 27. Bc3 {[%emt 0:00:14]} d5 {[%emt 0:00:19]} 28. Ba2 {[%emt 0:00:04]} Nb4 {[%emt 0:00:05]} 29. Bb3 {[%emt 0:00:15]} Kh8 {[%emt 0:00:10]} 30. Neg5 {[%emt 0:01:06]} Bxg5 {[%emt 0:00:20]} 31. Bxb4 {[%emt 0:00:02]} Be7 {[%emt 0:00:19]} 32. Bxe7 {[%emt 0:00:09]} Nxe7 {[%emt 0:00:01]} 33. Nd4 {[%emt 0:00:02]} Qd6 {[%emt 0:00:29]} 34. Bc2 {[%emt 0:00:17]} Nc6 {[%emt 0:00:18]} 35. Ne6 {[%emt 0:00:03]} Rf6 {[%emt 0:00:09]} 36. Ng5 {[%emt 0:00:09]} Ne7 {[%emt 0:00:12]} 37. Qh5 {[%emt 0:00:06]} h6 {[%emt 0:00:09]} 38. Nf7+ {[%emt 0:00:05]} Rxf7 {[%emt 0:00:02]} 39. Qxf7 {[%emt 0:00:02]} 1-0

[Event "FIDE Open World Rapid 2024"]
[Site "New York"]
[Date "2024.12.27"]
[Round "6.20"]
[White "Escobar Forero, Alder"]
[Black "Aravindh, Chithambaram VR."]
[Result "0-1"]
[ECO "B41"]
[WhiteElo "2420"]
[BlackElo "2718"]
[Annotator "TA"]
[PlyCount "64"]
[EventDate "2024.12.14"]
[EventType "swiss"]
[EventCountry "USA"]
[SourceTitle "playchess.com"]
[Source "ChessBase"]
[SourceQuality "1"]
[TimeControl "900+10"]

{[%evp 14,64,47,6,54,20,45,41,43,8,16,5,14,16,27,12,41,24,14,-16,0,-74,22,-8,21,0,113,-13,-26,-39,-13,-28,25,16,14,33,12,-116,17,-115,-130,-123,-123,-340,-310,-633,-639,-620,-616,-682,-688,-702,-693]} 1. e4 {[%emt 0:00:04]} c5 {[%emt 0:00:12]} 2. Nf3 {[%emt 0:00:04]} e6 {[%emt 0:00:12]} 3. d4 {[%emt 0:00:10]} cxd4 {[%emt 0:00:02]} 4. Nxd4 {[%emt 0:00:04]} a6 {[%emt 0:00:05]} 5. c4 {[%emt 0:01:25]} Nf6 {[%emt 0:00:20]} 6. Nc3 {[%emt 0:00:14]} Qc7 {[%emt 0:00:09]} 7. a3 {[%emt 0:00:42]} b6 {[%emt 0:00:18]} 8. Bd3 {[%emt 0:01:41]} Bb7 {[%emt 0:00:06]} (8... Nc6 $11 9. Nf3 Bb7) 9. Qe2 {[%emt 0:00:03]} d6 {[%emt 0:00:38]} 10. Be3 {[%emt 0:03:44]} Nbd7 {[%emt 0:00:45] White is slightly better.} 11. O-O {[%emt 0:00:35]} Be7 {[%emt 0:00:53]} 12. Rfc1 {[%emt 0:01:44]} Ne5 {[%emt 0:00:27]} 13. f3 {[%emt 0:03:20]} O-O {[%emt 0:00:12]} 14. Bb1 {[%emt 0:01:06]} Rac8 {[%emt 0:00:58]} (14... Qxc4 15. Nd5 Bxd5 16. Rxc4 Bxc4 17. Qd2 $14) (14... Nxc4 15. Nd1 d5 16. b3 $14) 15. b3 {[%emt 0:00:09]} Qb8 {[%emt 0:00:27]} 16. Kh1 {[%emt 0:00:03]} Rfe8 {[%emt 0:00:08]} 17. a4 {[%emt 0:00:09]} (17. Bg1 $11) 17... Bd8 {[%emt 0:00:36]} (17... d5 $17 {[%cal Rd5c4]} 18. f4 Neg4) 18. Bg1 {[%emt 0:00:24]} Bc7 {[%emt 0:00:04]} 19. b4 {[%emt 0:00:13]} d5 {[%emt 0:00:29]} (19... Bd8 $11 {remains equal.}) 20. c5 {[%emt 0:00:17]} ({Better is} 20. cxd5 $16 exd5 21. Nxd5 Nxd5 22. exd5) 20... bxc5 $11 {[%emt 0:00:33]} 21. bxc5 {[%emt 0:00:02]} Ba5 {[%emt 0:00:03]} 22. Nb3 {[%emt 0:01:29]} dxe4 {[%emt 0:00:26]} (22... Bxc3 $142 23. Rxc3 dxe4 24. fxe4 Nc6) 23. Nxe4 {[%emt 0:00:26]} (23. Nxa5 $2 exf3 24. Nxb7 fxe2 $19) 23... Bxe4 {[%emt 0:01:01]} 24. Nxa5 {[%emt 0:00:01]} Bd5 {[%emt 0:00:02]} 25. Bd4 {[%emt 0:00:11] [#]} (25. Qxa6 $2 {is the wrong capture.} Nxf3 26. Ba2 Nxg1 27. Bxd5 Ng4 $19 (27... exd5 $2 28. Kxg1 $19) (27... Nxd5 28. Kxg1 Qb2 29. Qb5 $15)) (25. Ba2 $11) 25... Ng6 {[%emt 0:00:06]} (25... Nxf3 $1 $17 26. gxf3 Qf4) 26. Qxa6 {[%emt 0:00:46]} (26. Be3 $11 {keeps the balance.}) 26... Qf4 $17 {[%emt 0:01:35][%csl LRc1,LRd4]} 27. Bxg6 {[%emt 0:00:03] Hoping for Bxf6.} Qxd4 $40 {[%emt 0:00:03][%mdl 128] Black wants a kill.} 28. Be4 {[%emt 0:00:29] White does not recover from this.} Ra8 {[%emt 0:02:47]} ({Weaker is} 28... Rxc5 29. Bxd5 Nxd5 30. Nb3 Rxc1+ 31. Rxc1 $11) 29. Qb5 {[%emt 0:00:10] [#]} (29. Qd3 Qxd3 30. Bxd3 Rxa5 31. Bb5) 29... Nxe4 $19 {[%emt 0:00:21] Black is clearly winning.} 30. fxe4 {[%emt 0:00:02]} Qxe4 {[%emt 0:00:03]} 31. Rg1 {[%emt 0:00:17]} Reb8 {[%emt 0:00:02]} 32. Rae1 {[%emt 0:00:02]} Rxb5 {[%emt 0:00:10] Weighted Error Value: White=0.73/Black=0.29 (precise) .  Loses game:     	White=1     	---        Mistake:       	White=5     	Black=4      Inaccurate:     	White=4     	Black=2      OK:         	White=3     	Black=9      Best:        	White=2     	---} 0-1

[Event "FIDE Open World Rapid 2024"]
[Site "New York"]
[Date "2024.12.27"]
[Round "6.21"]
[White "Jacobson, Brandon"]
[Black "Lenderman, Aleksandr"]
[Result "1-0"]
[ECO "B53"]
[WhiteElo "2583"]
[BlackElo "2480"]
[Annotator "ChessBase"]
[PlyCount "73"]
[EventDate "2024.12.14"]
[EventType "swiss"]
[EventCountry "USA"]
[SourceTitle "playchess.com"]
[Source "ChessBase"]
[SourceQuality "1"]
[TimeControl "900+10"]

1. e4 {[%emt 0:00:02]} c5 {[%emt 0:00:01]} 2. Nf3 {[%emt 0:00:04]} d6 {[%emt 0:00:01]} 3. Nc3 {[%emt 0:01:02]} Nf6 {[%emt 0:00:15]} 4. d4 {[%emt 0:00:08]} cxd4 {[%emt 0:00:02]} 5. Qxd4 {[%emt 0:00:03]} Nc6 {[%emt 0:00:53]} 6. Qe3 {[%emt 0:00:03]} e6 {[%emt 0:00:45]} 7. b3 {[%emt 0:00:05]} Be7 {[%emt 0:01:09]} 8. Bb2 {[%emt 0:00:03]} O-O {[%emt 0:00:03]} 9. O-O-O {[%emt 0:00:05]} Ng4 {[%emt 0:02:09]} 10. Qd2 {[%emt 0:01:18]} Qb6 {[%emt 0:01:15]} 11. h3 {[%emt 0:00:30]} Nge5 {[%emt 0:00:07]} 12. Nh2 {[%emt 0:01:12]} a6 {[%emt 0:01:15]} 13. f4 {[%emt 0:00:14]} Nd7 {[%emt 0:00:02]} 14. g4 {[%emt 0:00:54]} Nc5 {[%emt 0:00:13]} 15. g5 {[%emt 0:00:28]} Rd8 {[%emt 0:00:48]} 16. Ng4 {[%emt 0:00:15]} d5 {[%emt 0:02:15]} 17. exd5 {[%emt 0:03:39]} exd5 {[%emt 0:00:58]} 18. Nxd5 {[%emt 0:01:12]} Rxd5 {[%emt 0:00:03]} 19. Qxd5 {[%emt 0:00:02]} Be6 {[%emt 0:00:03]} 20. Qd2 {[%emt 0:00:06]} Nb4 {[%emt 0:00:25]} 21. Qd4 {[%emt 0:01:23]} Bf8 {[%emt 0:00:14]} 22. Bc4 {[%emt 0:02:10]} Bxc4 {[%emt 0:02:35]} 23. Qxc4 {[%emt 0:00:02]} Rc8 {[%emt 0:01:06]} 24. Kb1 {[%emt 0:00:26]} Rc7 {[%emt 0:00:09]} 25. Nh6+ {[%emt 0:01:36]} gxh6 {[%emt 0:00:22]} 26. gxh6 {[%emt 0:00:02]} Be7 {[%emt 0:01:06]} 27. Qc3 {[%emt 0:00:02]} f6 {[%emt 0:00:35]} 28. Qg3+ {[%emt 0:00:02]} Kf7 {[%emt 0:00:02]} 29. Qg7+ {[%emt 0:00:03]} Ke8 {[%emt 0:00:01]} 30. Qg8+ {[%emt 0:01:05]} Bf8 {[%emt 0:00:01]} 31. Rhe1+ {[%emt 0:00:14]} Re7 {[%emt 0:00:04]} 32. Rxe7+ {[%emt 0:00:08]} Kxe7 {[%emt 0:00:01]} 33. Re1+ {[%emt 0:00:10]} Ne6 {[%emt 0:00:37]} 34. f5 {[%emt 0:00:04]} Qc5 {[%emt 0:00:02]} 35. Bxf6+ {[%emt 0:00:38]} Kxf6 {[%emt 0:00:19]} 36. Rxe6+ {[%emt 0:00:03]} Kxf5 {[%emt 0:00:01]} 37. Qg4# {[%emt 0:00:19]} 1-0

[Event "FIDE Open World Rapid 2024"]
[Site "New York"]
[Date "2024.12.27"]
[Round "6.21"]
[White "Moroni, Luca Jr"]
[Black "Ansat, Aldiyar"]
[Result "1-0"]
[ECO "E66"]
[WhiteElo "2550"]
[BlackElo "2479"]
[Annotator "ChessBase"]
[PlyCount "155"]
[EventDate "2024.12.14"]
[EventType "swiss"]
[EventCountry "USA"]
[SourceTitle "playchess.com"]
[Source "ChessBase"]
[SourceQuality "1"]
[TimeControl "900+10"]

1. c4 {[%emt 0:00:55]} c5 {[%emt 0:00:05]} 2. Nc3 {[%emt 0:00:02]} Nf6 {[%emt 0:00:03]} 3. g3 {[%emt 0:00:02]} g6 {[%emt 0:00:08]} 4. Bg2 {[%emt 0:00:02]} Bg7 {[%emt 0:00:01]} 5. Nf3 {[%emt 0:00:06]} O-O {[%emt 0:00:03]} 6. d4 {[%emt 0:00:01]} d6 {[%emt 0:00:01]} 7. O-O {[%emt 0:00:04]} Nc6 {[%emt 0:00:01]} 8. d5 {[%emt 0:00:06]} Na5 {[%emt 0:00:01]} 9. Qd3 {[%emt 0:00:04]} a6 {[%emt 0:00:05]} 10. e4 {[%emt 0:00:27]} Rb8 {[%emt 0:04:34]} 11. Bd2 {[%emt 0:00:02]} e6 {[%emt 0:01:04]} 12. b3 {[%emt 0:01:20]} exd5 {[%emt 0:00:23]} 13. cxd5 {[%emt 0:00:02]} b5 {[%emt 0:00:12]} 14. Qc2 {[%emt 0:00:13]} Re8 {[%emt 0:00:42]} 15. Rae1 {[%emt 0:01:27]} b4 {[%emt 0:01:25]} 16. Na4 {[%emt 0:00:23]} Bd7 {[%emt 0:00:02]} 17. Nb2 {[%emt 0:02:57]} Nxe4 18. Rxe4 {[%emt 0:00:04]} Rxe4 {[%emt 0:00:26]} 19. Qxe4 {[%emt 0:00:02]} Bxb2 {[%emt 0:00:01]} 20. Bg5 {[%emt 0:00:24]} f6 {[%emt 0:01:28]} 21. Bf4 {[%emt 0:00:49]} Qf8 {[%emt 0:00:14]} 22. Qe2 {[%emt 0:00:50]} Be5 {[%emt 0:01:01]} 23. Qxa6 {[%emt 0:01:00]} Ra8 {[%emt 0:01:22]} 24. Qb6 {[%emt 0:00:07]} Bxf4 {[%emt 0:00:38]} 25. gxf4 {[%emt 0:00:12]} Qb8 {[%emt 0:00:11]} 26. Qxb8+ {[%emt 0:00:11]} Rxb8 {[%emt 0:00:01]} 27. Nd2 {[%emt 0:00:08]} Kf7 {[%emt 0:00:54]} 28. Ne4 {[%emt 0:00:34]} Nb7 {[%emt 0:00:01]} 29. Nd2 {[%emt 0:01:00]} Ra8 {[%emt 0:00:29]} 30. Ra1 {[%emt 0:00:08]} f5 {[%emt 0:02:25]} 31. Bf1 {[%emt 0:00:39]} Kf6 {[%emt 0:00:03]} 32. Nc4 {[%emt 0:00:44]} Be8 {[%emt 0:00:40]} 33. Nb6 {[%emt 0:00:19]} Ra7 {[%emt 0:01:07]} 34. Nc8 {[%emt 0:00:45]} Ra8 {[%emt 0:00:04]} 35. Nb6 {[%emt 0:00:02]} Ra7 {[%emt 0:00:00]} 36. Bc4 {[%emt 0:01:22]} Bf7 {[%emt 0:00:11]} 37. Bb5 {[%emt 0:00:33]} Na5 {[%emt 0:00:31]} 38. Ba4 {[%emt 0:00:39]} Rb7 {[%emt 0:00:33]} 39. Nc8 {[%emt 0:00:34]} Bxd5 {[%emt 0:00:06]} 40. Rd1 {[%emt 0:00:08]} Be6 {[%emt 0:00:21]} 41. Nxd6 {[%emt 0:00:27]} Rb8 {[%emt 0:00:03]} 42. Rc1 {[%emt 0:00:13]} Rd8 {[%emt 0:00:19]} 43. Ne8+ {[%emt 0:00:09]} Ke7 {[%emt 0:00:00]} 44. Rxc5 {[%emt 0:00:00]} Rd1+ {[%emt 0:00:02]} 45. Kg2 {[%emt 0:00:01]} Nb7 {[%emt 0:00:12]} 46. Re5 {[%emt 0:00:53]} Nd8 {[%emt 0:00:20]} 47. Nc7 {[%emt 0:00:10]} Kf6 {[%emt 0:00:04]} 48. Rb5 {[%emt 0:00:30]} Bc8 {[%emt 0:00:13]} 49. Rxb4 {[%emt 0:00:49]} Bb7+ {[%emt 0:00:00]} 50. f3 {[%emt 0:00:01]} Rd2+ {[%emt 0:00:06]} 51. Kg3 {[%emt 0:00:17]} Rd3 {[%emt 0:00:18]} 52. Kf2 {[%emt 0:00:10]} Rxf3+ {[%emt 0:00:04]} 53. Ke2 {[%emt 0:00:01]} Rh3 {[%emt 0:00:06]} 54. Rd4 {[%emt 0:00:17]} Rxh2+ {[%emt 0:00:23]} 55. Ke1 {[%emt 0:00:12]} Nf7 {[%emt 0:00:06]} 56. Be8 {[%emt 0:00:24]} Bf3 {[%emt 0:00:17]} 57. a4 {[%emt 0:00:16]} Nh6 {[%emt 0:00:15]} 58. Rd3 {[%emt 0:00:15]} Be4 {[%emt 0:00:12]} 59. Rd6+ {[%emt 0:00:06]} Ke7 {[%emt 0:00:03]} 60. Rd7+ {[%emt 0:00:05]} Kf6 {[%emt 0:00:09]} 61. Rxh7 {[%emt 0:00:01]} Rh1+ {[%emt 0:00:07]} 62. Kd2 {[%emt 0:00:02]} g5 {[%emt 0:00:12]} 63. fxg5+ {[%emt 0:00:21]} Kxg5 {[%emt 0:00:01]} 64. a5 {[%emt 0:00:04]} f4 {[%emt 0:00:13]} 65. Re7 {[%emt 0:00:08]} Rh2+ {[%emt 0:00:16]} 66. Kc3 {[%emt 0:00:04]} Rc2+ {[%emt 0:00:02]} 67. Kb4 {[%emt 0:00:00]} Bg2 {[%emt 0:00:22]} 68. Rg7+ {[%emt 0:00:14]} Kf6 {[%emt 0:00:14]} 69. Rg6+ {[%emt 0:00:05]} Ke5 {[%emt 0:00:10]} 70. Re6+ {[%emt 0:00:08]} Kd4 {[%emt 0:00:09]} 71. Nb5+ {[%emt 0:00:04]} Kd5 {[%emt 0:00:03]} 72. Rxh6 {[%emt 0:00:26]} f3 {[%emt 0:00:01]} 73. Nc3+ {[%emt 0:00:21]} Ke5 {[%emt 0:00:15]} 74. Bc6 {[%emt 0:00:05]} Kd4 {[%emt 0:00:17]} 75. a6 {[%emt 0:00:10]} Rxc3 {[%emt 0:00:06]} 76. Rh4+ {[%emt 0:00:02]} Kd3 {[%emt 0:00:03]} 77. Be4+ {[%emt 0:00:27]} Kd2 {[%emt 0:00:03]} 78. a7 {[%emt 0:00:04]} 1-0

[Event "FIDE Open World Rapid 2024"]
[Site "New York"]
[Date "2024.12.27"]
[Round "6.22"]
[White "Oro, Faustino"]
[Black "Hakobyan, Aram"]
[Result "0-1"]
[ECO "D38"]
[WhiteElo "2433"]
[BlackElo "2625"]
[Annotator "ChessBase"]
[PlyCount "84"]
[EventDate "2024.12.14"]
[EventType "swiss"]
[EventCountry "USA"]
[SourceTitle "playchess.com"]
[Source "ChessBase"]
[SourceQuality "1"]
[TimeControl "900+10"]

1. d4 {[%emt 0:00:03]} Nf6 {[%emt 0:00:01]} 2. c4 {[%emt 0:00:01]} e6 {[%emt 0:00:01]} 3. Nf3 {[%emt 0:00:11]} d5 {[%emt 0:00:04]} 4. Nc3 {[%emt 0:00:05]} Bb4 {[%emt 0:00:04]} 5. Qa4+ {[%emt 0:00:02]} Nc6 {[%emt 0:00:02]} 6. a3 {[%emt 0:00:15]} Bxc3+ {[%emt 0:00:04]} 7. bxc3 {[%emt 0:00:01]} Bd7 {[%emt 0:00:10]} 8. cxd5 {[%emt 0:00:17]} exd5 {[%emt 0:00:03]} 9. Bg5 {[%emt 0:00:32]} h6 {[%emt 0:00:24]} 10. Bh4 {[%emt 0:00:02]} g5 {[%emt 0:01:07]} 11. Bg3 {[%emt 0:00:02]} O-O {[%emt 0:01:05]} 12. e3 {[%emt 0:03:27]} Re8 {[%emt 0:00:02]} 13. Qc2 {[%emt 0:01:03]} Ne4 {[%emt 0:00:43]} 14. Nd2 {[%emt 0:00:15]} Bf5 {[%emt 0:01:41]} 15. Bd3 {[%emt 0:01:26]} h5 {[%emt 0:00:03]} 16. Bxe4 {[%emt 0:01:08]} Bxe4 {[%emt 0:00:11]} 17. Nxe4 {[%emt 0:00:03]} Rxe4 {[%emt 0:00:08]} 18. h3 {[%emt 0:01:36]} h4 {[%emt 0:00:02]} 19. Bh2 {[%emt 0:00:01]} Qd7 {[%emt 0:00:01]} 20. O-O {[%emt 0:00:36]} Na5 {[%emt 0:01:01]} 21. Qe2 {[%emt 0:00:54]} Nc4 {[%emt 0:01:27]} 22. Qh5 {[%emt 0:00:04]} f6 {[%emt 0:00:51]} 23. f4 {[%emt 0:01:33]} g4 {[%emt 0:01:07]} 24. Qxh4 {[%emt 0:00:37]} Nxe3 {[%emt 0:00:12]} 25. Qxf6 {[%emt 0:00:52]} Nxf1 {[%emt 0:00:31]} 26. Rxf1 {[%emt 0:00:11]} Qg7 {[%emt 0:03:30]} 27. Qf5 {[%emt 0:00:02]} c6 {[%emt 0:00:24]} 28. hxg4 {[%emt 0:00:37]} Rf8 {[%emt 0:00:12]} 29. Qh5 {[%emt 0:00:04]} Qh7 {[%emt 0:00:47]} 30. Qg5+ {[%emt 0:00:05]} Kf7 {[%emt 0:00:28]} 31. Qh5+ {[%emt 0:02:02]} Qxh5 {[%emt 0:00:01]} 32. gxh5 {[%emt 0:00:00]} Rg8 {[%emt 0:00:01]} 33. Kf2 {[%emt 0:00:31]} Rge8 {[%emt 0:00:32]} 34. Bg3 {[%emt 0:01:43]} Re2+ {[%emt 0:00:06]} 35. Kg1 {[%emt 0:00:00]} Rh8 {[%emt 0:00:27]} 36. Bh4 {[%emt 0:00:29]} Rxh5 {[%emt 0:00:06]} 37. Bg5 {[%emt 0:00:01]} Kg6 {[%emt 0:00:24]} 38. Rb1 {[%emt 0:00:27]} b6 {[%emt 0:00:08]} 39. a4 {[%emt 0:00:04]} Kf5 {[%emt 0:00:04]} 40. a5 {[%emt 0:00:11]} Kg4 {[%emt 0:00:20]} 41. Rb3 {[%emt 0:00:11]} Re1+ {[%emt 0:00:25]} 42. Kf2 {[%emt 0:00:01]} Rhh1 {[%emt 0:00:02]} 0-1

[Event "FIDE Open World Rapid 2024"]
[Site "New York"]
[Date "2024.12.27"]
[Round "6.22"]
[White "Tsaruk, Maksim"]
[Black "Shankland, Sam"]
[Result "0-1"]
[ECO "B22"]
[WhiteElo "2424"]
[BlackElo "2672"]
[Annotator "ChessBase"]
[PlyCount "184"]
[EventDate "2024.12.14"]
[EventType "swiss"]
[EventCountry "USA"]
[SourceTitle "playchess.com"]
[Source "ChessBase"]
[SourceQuality "1"]
[TimeControl "900+10"]

1. e4 {[%emt 0:00:02]} c5 {[%emt 0:00:01]} 2. c3 {[%emt 0:00:02]} d5 {[%emt 0:00:02]} 3. exd5 {[%emt 0:00:02]} Qxd5 {[%emt 0:00:02]} 4. d4 {[%emt 0:00:02]} Nf6 {[%emt 0:00:04]} 5. Nf3 {[%emt 0:00:05]} e6 {[%emt 0:00:06]} 6. Na3 {[%emt 0:00:11]} Nc6 {[%emt 0:00:10]} 7. Be3 {[%emt 0:00:17]} cxd4 {[%emt 0:00:07]} 8. Nb5 {[%emt 0:00:04]} Qd7 {[%emt 0:00:14]} 9. Nbxd4 {[%emt 0:00:03]} Be7 {[%emt 0:00:03]} 10. Nxc6 {[%emt 0:00:31]} Qxc6 {[%emt 0:00:03]} 11. Bd4 {[%emt 0:02:29]} O-O {[%emt 0:01:01]} 12. Bd3 {[%emt 0:00:02]} b6 {[%emt 0:01:09]} 13. Qe2 {[%emt 0:00:04]} Bb7 {[%emt 0:00:41]} 14. O-O {[%emt 0:00:02]} Rad8 {[%emt 0:00:53]} 15. Rfe1 {[%emt 0:00:09]} Bc5 {[%emt 0:01:02]} 16. Bxf6 {[%emt 0:00:59]} gxf6 {[%emt 0:00:01]} 17. Be4 {[%emt 0:00:13]} Qxe4 {[%emt 0:00:19]} 18. Qxe4 {[%emt 0:00:01]} Bxe4 {[%emt 0:00:02]} 19. Rxe4 {[%emt 0:00:01]} Rd5 {[%emt 0:00:35]} 20. g3 {[%emt 0:04:34]} Rfd8 {[%emt 0:00:23]} 21. Kg2 {[%emt 0:00:02]} f5 {[%emt 0:01:12]} 22. Re2 {[%emt 0:00:05]} Kg7 {[%emt 0:00:12]} 23. Rae1 {[%emt 0:00:22]} Kf6 {[%emt 0:00:39]} 24. Ne5 {[%emt 0:00:12]} b5 {[%emt 0:00:37]} 25. c4 {[%emt 0:02:11]} bxc4 {[%emt 0:00:20]} 26. Nxc4 {[%emt 0:00:01]} Rc8 {[%emt 0:01:24]} 27. b3 {[%emt 0:00:12]} Bb4 {[%emt 0:00:57]} 28. Rc1 {[%emt 0:00:17]} Rd4 {[%emt 0:01:11]} 29. Rcc2 {[%emt 0:01:42]} f4 {[%emt 0:02:05]} 30. Kf3 {[%emt 0:00:03]} fxg3 {[%emt 0:00:49]} 31. hxg3 {[%emt 0:00:01]} h5 {[%emt 0:00:06]} 32. Ne3 {[%emt 0:01:30]} Rcd8 {[%emt 0:00:03]} 33. Rc4 {[%emt 0:01:08]} a5 {[%emt 0:00:37]} 34. Rec2 {[%emt 0:00:59]} Rxc4 {[%emt 0:00:54]} 35. Nxc4 {[%emt 0:00:11]} Rd4 {[%emt 0:00:25]} 36. Ne3 {[%emt 0:01:07]} Kg5 {[%emt 0:00:58]} 37. Rc4 {[%emt 0:00:42]} Rd2 {[%emt 0:00:33]} 38. Rc2 {[%emt 0:00:01]} Rd7 {[%emt 0:00:27]} 39. Rc6 {[%emt 0:00:05]} h4 {[%emt 0:00:20]} 40. gxh4+ {[%emt 0:00:05]} Kxh4 {[%emt 0:00:01]} 41. Nc4 {[%emt 0:00:22]} Kg5 {[%emt 0:00:16]} 42. a3 {[%emt 0:00:19]} Be7 {[%emt 0:00:30]} 43. Ke4 {[%emt 0:00:32]} Kf6 {[%emt 0:00:18]} 44. Ra6 {[%emt 0:00:01]} Bc5 {[%emt 0:00:18]} 45. Ne3 {[%emt 0:00:24]} Bxe3 {[%emt 0:00:13]} 46. fxe3 {[%emt 0:00:08]} Rd5 {[%emt 0:00:02]} 47. Rb6 {[%emt 0:00:09]} Kg5 {[%emt 0:00:09]} 48. Kf3 {[%emt 0:00:10]} Rc5 {[%emt 0:00:19]} 49. b4 {[%emt 0:00:02]} axb4 {[%emt 0:00:03]} 50. axb4 {[%emt 0:00:17]} Rc4 {[%emt 0:00:02]} 51. b5 {[%emt 0:00:04]} Rb4 {[%emt 0:00:02]} 52. Rb8 {[%emt 0:00:05]} Kf5 {[%emt 0:00:06]} 53. b6 {[%emt 0:00:24]} Rb3 {[%emt 0:00:08]} 54. Rf8 {[%emt 0:00:11]} Kf6 {[%emt 0:00:07]} 55. Rb8 {[%emt 0:00:03]} Ke5 {[%emt 0:00:01]} 56. Ra8 {[%emt 0:00:17]} Rxb6 {[%emt 0:00:45]} 57. Ra5+ {[%emt 0:00:01]} Kf6 {[%emt 0:00:04]} 58. Kf4 {[%emt 0:00:05]} Rb4+ {[%emt 0:00:05]} 59. Kf3 {[%emt 0:00:13]} Kg6 {[%emt 0:00:04]} 60. Ra8 {[%emt 0:00:03]} f5 {[%emt 0:00:03]} 61. Rg8+ {[%emt 0:00:03]} Kf7 {[%emt 0:00:01]} 62. Ra8 {[%emt 0:00:01]} Kf6 {[%emt 0:00:03]} 63. Ra6 {[%emt 0:00:03]} Rb5 {[%emt 0:00:14]} 64. Rc6 {[%emt 0:00:03]} Ke5 {[%emt 0:00:05]} 65. Ra6 {[%emt 0:00:03]} Rc5 {[%emt 0:00:05]} 66. Rb6 {[%emt 0:00:01]} Ra5 {[%emt 0:00:03]} 67. Rb8 {[%emt 0:00:18]} Ra3 {[%emt 0:00:10]} 68. Rb5+ {[%emt 0:00:01]} Kd6 {[%emt 0:00:00]} 69. Rb8 {[%emt 0:00:08]} e5 {[%emt 0:00:06]} 70. Ke2 {[%emt 0:00:18]} Ra2+ {[%emt 0:00:11]} 71. Ke1 {[%emt 0:01:07]} Kd5 {[%emt 0:00:01]} 72. Rb4 {[%emt 0:00:01]} Rc2 {[%emt 0:00:37]} 73. Kd1 {[%emt 0:00:20]} Rc4 {[%emt 0:00:18]} 74. Rb2 {[%emt 0:00:10]} Rg4 {[%emt 0:00:22]} 75. Rh2 {[%emt 0:00:11]} Ra4 {[%emt 0:00:24]} 76. Rh5 {[%emt 0:00:12]} Ra1+ {[%emt 0:00:11]} 77. Ke2 {[%emt 0:00:02]} Ra2+ {[%emt 0:00:06]} 78. Kf3 {[%emt 0:00:11]} e4+ {[%emt 0:00:31]} 79. Kg3 {[%emt 0:00:01]} Ke5 {[%emt 0:00:02]} 80. Rh8 {[%emt 0:00:15]} Re2 {[%emt 0:00:03]} 81. Re8+ {[%emt 0:00:01]} Kf6 {[%emt 0:00:01]} 82. Rf8+ {[%emt 0:00:11]} Ke6 {[%emt 0:00:03]} 83. Kf4 {[%emt 0:00:28]} Rf2+ {[%emt 0:00:01]} 84. Kg5 {[%emt 0:00:01]} Rg2+ {[%emt 0:00:02]} 85. Kh5 {[%emt 0:00:01]} Rg3 {[%emt 0:00:08]} 86. Re8+ {[%emt 0:00:04]} Kf7 {[%emt 0:00:02]} 87. Ra8 {[%emt 0:00:19]} Rxe3 {[%emt 0:00:11]} 88. Kg5 {[%emt 0:00:18]} Rf3 {[%emt 0:00:01]} 89. Ra6 {[%emt 0:00:16]} e3 {[%emt 0:00:05]} 90. Ra3 {[%emt 0:00:10]} Ke6 {[%emt 0:00:05]} 91. Ra6+ {[%emt 0:00:03]} Kd5 {[%emt 0:00:04]} 92. Ra5+ {[%emt 0:00:01]} Kc4 {[%emt 0:00:05]} 0-1